[Event "Early-Titled-Tuesday-Blitz-March-05-2024"]
[Site "Chess.com"]
[Date "2024.03.05"]
[Round "3"]
[White "Msb2"]
[Black "mr_gustavo"]
[Result "1/2-1/2"]
[WhiteElo "3031"]
[BlackElo "2739"]
[TimeControl "180+1"]
[EndTime "8:32:32 PST"]
[Termination "Game drawn - insufficient material"]

1. d4 {[%clk 0:03:00.9]} 1... Nf6 {[%clk 0:02:59.7]} 2. c4 {[%clk 0:03:01.5]}
2... g6 {[%clk 0:02:58.8]} 3. Nc3 {[%clk 0:03:02.1]} 3... Bg7 {[%clk 0:02:58.7]}
4. e4 {[%clk 0:03:02.7]} 4... d6 {[%clk 0:02:58]} 5. Nf3 {[%clk 0:03:03.3]} 5...
O-O {[%clk 0:02:58]} 6. Be2 {[%clk 0:03:04]} 6... e5 {[%clk 0:02:57.7]} 7. Be3
{[%clk 0:03:04.8]} 7... Ng4 {[%clk 0:02:56.8]} 8. Bg5 {[%clk 0:03:05]} 8... f6
{[%clk 0:02:56.9]} 9. Bh4 {[%clk 0:03:05.8]} 9... Nc6 {[%clk 0:02:54.5]} 10. d5
{[%clk 0:03:06.4]} 10... Ne7 {[%clk 0:02:54.5]} 11. Nd2 {[%clk 0:03:07.1]} 11...
Nh6 {[%clk 0:02:49]} 12. f3 {[%clk 0:03:05.9]} 12... g5 {[%clk 0:02:43]} 13. Bf2
{[%clk 0:03:05.9]} 13... f5 {[%clk 0:02:43.6]} 14. c5 {[%clk 0:03:06.6]} 14...
g4 {[%clk 0:02:34.9]} 15. Nc4 {[%clk 0:03:03.2]} 15... gxf3 {[%clk 0:02:31.2]}
16. Bxf3 {[%clk 0:03:04.1]} 16... fxe4 {[%clk 0:02:30]} 17. Nxe4 {[%clk
0:03:00.3]} 17... Nhf5 {[%clk 0:02:30.5]} 18. cxd6 {[%clk 0:02:56.6]} 18... cxd6
{[%clk 0:02:30.3]} 19. O-O {[%clk 0:02:55.5]} 19... b5 {[%clk 0:02:23.9]} 20.
Ne3 {[%clk 0:02:45.7]} 20... Nd4 {[%clk 0:02:23]} 21. Bg4 {[%clk 0:02:42.7]}
21... Bb7 {[%clk 0:02:22.3]} 22. Bh4 {[%clk 0:02:34.7]} 22... Rxf1+ {[%clk
0:02:08.2]} 23. Qxf1 {[%clk 0:02:35.6]} 23... Qb6 {[%clk 0:01:24.4]} 24. Bxe7
{[%clk 0:02:08.9]} 24... Nc2 {[%clk 0:01:23.5]} 25. Be6+ {[%clk 0:02:07.8]}
25... Kh8 {[%clk 0:01:23]} 26. Ng5 {[%clk 0:02:08.5]} 26... Qxe3+ {[%clk
0:00:49.3]} 27. Kh1 {[%clk 0:02:07.4]} 27... Nxa1 {[%clk 0:00:48.7]} 28. Nf7+
{[%clk 0:01:46.2]} 28... Kg8 {[%clk 0:00:48.7]} 29. Nxd6+ {[%clk 0:01:46.7]}
29... Kh8 {[%clk 0:00:49.1]} 30. Nf7+ {[%clk 0:01:34.2]} 30... Kg8 {[%clk
0:00:49.2]} 31. Nd6+ {[%clk 0:01:35.1]} 31... Kh8 {[%clk 0:00:49.5]} 32. Nxb7
{[%clk 0:01:35.9]} 32... Nc2 {[%clk 0:00:26.4]} 33. Nd6 {[%clk 0:01:19.6]} 33...
Nd4 {[%clk 0:00:26.9]} 34. Bg5 {[%clk 0:01:03.1]} 34... Qe2 {[%clk 0:00:10.7]}
35. Nf7+ {[%clk 0:01:02.5]} 35... Kg8 {[%clk 0:00:10.7]} 36. Nh6+ {[%clk
0:01:03.4]} 36... Kh8 {[%clk 0:00:10.6]} 37. Qxe2 {[%clk 0:00:51.7]} 37... Nxe2
{[%clk 0:00:10.3]} 38. d6 {[%clk 0:00:52.6]} 38... Nd4 {[%clk 0:00:04.1]} 39.
Bd5 {[%clk 0:00:51.5]} 39... Bxh6 {[%clk 0:00:03.2]} 40. Bf6+ {[%clk 0:00:31.5]}
40... Bg7 {[%clk 0:00:03.6]} 41. Bxg7+ {[%clk 0:00:32.4]} 41... Kxg7 {[%clk
0:00:04.5]} 42. Bxa8 {[%clk 0:00:33.3]} 42... Kf6 {[%clk 0:00:05.2]} 43. Bd5
{[%clk 0:00:26.6]} 43... Nf5 {[%clk 0:00:04.6]} 44. Be4 {[%clk 0:00:25.6]} 44...
Nxd6 {[%clk 0:00:04.3]} 45. Bxh7 {[%clk 0:00:25.9]} 45... e4 {[%clk 0:00:04.5]}
46. Kg1 {[%clk 0:00:26.1]} 46... Kg7 {[%clk 0:00:05.2]} 47. Bxe4 {[%clk
0:00:22.3]} 47... Nxe4 {[%clk 0:00:06.1]} 48. Kf1 {[%clk 0:00:23.2]} 48... Kf6
{[%clk 0:00:06.7]} 49. Ke2 {[%clk 0:00:23.8]} 49... Ke5 {[%clk 0:00:07.6]} 50.
Ke3 {[%clk 0:00:24.4]} 50... a5 {[%clk 0:00:07.7]} 51. g4 {[%clk 0:00:21.9]}
51... Nf6 {[%clk 0:00:08.1]} 52. Kf3 {[%clk 0:00:22]} 52... b4 {[%clk
0:00:07.9]} 53. h4 {[%clk 0:00:22.5]} 53... a4 {[%clk 0:00:07.9]} 54. g5 {[%clk
0:00:22.9]} 54... Nd5 {[%clk 0:00:08.2]} 55. h5 {[%clk 0:00:19.1]} 55... Kf5
{[%clk 0:00:08.2]} 56. g6 {[%clk 0:00:19.8]} 56... a3 {[%clk 0:00:04.3]} 57. g7
{[%clk 0:00:10.9]} 57... Nf6 {[%clk 0:00:04.2]} 58. b3 {[%clk 0:00:04.9]} 58...
Kg5 {[%clk 0:00:04]} 59. Ke3 {[%clk 0:00:05.8]} 59... Kxh5 {[%clk 0:00:03.4]}
60. Kd4 {[%clk 0:00:06.7]} 60... Kg6 {[%clk 0:00:03.3]} 61. Kc4 {[%clk
0:00:07.4]} 61... Kxg7 {[%clk 0:00:03.9]} 62. Kxb4 {[%clk 0:00:08.1]} 62... Kf7
{[%clk 0:00:04.8]} 63. Kxa3 {[%clk 0:00:08.9]} 63... Ke7 {[%clk 0:00:05.6]} 64.
Kb4 {[%clk 0:00:09.8]} 64... Kd7 {[%clk 0:00:06.5]} 65. a4 {[%clk 0:00:10.7]}
65... Kc7 {[%clk 0:00:07.1]} 66. Ka5 {[%clk 0:00:11.6]} 66... Kb7 {[%clk
0:00:07.1]} 67. b4 {[%clk 0:00:12.5]} 67... Nd5 {[%clk 0:00:07.6]} 68. b5 {[%clk
0:00:13.4]} 68... Ka7 {[%clk 0:00:07.3]} 69. b6+ {[%clk 0:00:12]} 69... Nxb6
{[%clk 0:00:08]} 70. Kb5 {[%clk 0:00:12.9]} 70... Nxa4 {[%clk 0:00:07.5]}
1/2-1/2

[Event "Early-Titled-Tuesday-Blitz-March-05-2024"]
[Site "Chess.com"]
[Date "2024.03.05"]
[Round "3"]
[White "Kunalm64"]
[Black "TigrVShlyape"]
[Result "1/2-1/2"]
[WhiteElo "2607"]
[BlackElo "2865"]
[TimeControl "180+1"]
[EndTime "8:32:32 PST"]
[Termination "Game drawn by repetition"]

1. e4 {[%clk 0:02:59.5]} 1... c5 {[%clk 0:02:58.5]} 2. Nf3 {[%clk 0:02:59.3]}
2... e6 {[%clk 0:02:58.3]} 3. g3 {[%clk 0:02:56.8]} 3... a6 {[%clk 0:02:47.8]}
4. Bg2 {[%clk 0:02:51.7]} 4... b5 {[%clk 0:02:48.1]} 5. O-O {[%clk 0:02:51.3]}
5... Bb7 {[%clk 0:02:48.5]} 6. Re1 {[%clk 0:02:50.7]} 6... Nc6 {[%clk
0:02:44.6]} 7. d4 {[%clk 0:02:48.7]} 7... cxd4 {[%clk 0:02:44.2]} 8. Nxd4 {[%clk
0:02:48.9]} 8... Nxd4 {[%clk 0:02:44.1]} 9. Qxd4 {[%clk 0:02:48.6]} 9... Rc8
{[%clk 0:02:42.1]} 10. c3 {[%clk 0:02:42.5]} 10... Ne7 {[%clk 0:02:41.1]} 11.
Bg5 {[%clk 0:02:28.6]} 11... f6 {[%clk 0:02:39.1]} 12. Be3 {[%clk 0:02:24.8]}
12... Nc6 {[%clk 0:02:38]} 13. Qd2 {[%clk 0:02:24.3]} 13... Ne5 {[%clk
0:02:37.3]} 14. Qe2 {[%clk 0:02:10.1]} 14... Nc4 {[%clk 0:02:31.8]} 15. Bc1
{[%clk 0:02:09.7]} 15... Bc5 {[%clk 0:02:17.4]} 16. Nd2 {[%clk 0:02:08.1]} 16...
Nxd2 {[%clk 0:01:59.1]} 17. Bxd2 {[%clk 0:02:07.9]} 17... O-O {[%clk 0:01:59.6]}
18. Be3 {[%clk 0:02:03]} 18... Qb6 {[%clk 0:01:57.1]} 19. Bxc5 {[%clk
0:01:59.8]} 19... Qxc5 {[%clk 0:01:56.6]} 20. Rad1 {[%clk 0:01:53.3]} 20... Rc7
{[%clk 0:01:56.3]} 21. a3 {[%clk 0:01:50.4]} 21... f5 {[%clk 0:01:51.9]} 22.
exf5 {[%clk 0:01:49.1]} 22... Bxg2 {[%clk 0:01:51.6]} 23. Kxg2 {[%clk
0:01:49.1]} 23... Rxf5 {[%clk 0:01:44.4]} 24. f4 {[%clk 0:01:44]} 24... Rd5
{[%clk 0:01:36.7]} 25. Rxd5 {[%clk 0:01:36.9]} 25... Qxd5+ {[%clk 0:01:36.5]}
26. Qf3 {[%clk 0:01:37.2]} 26... Qxf3+ {[%clk 0:01:36.4]} 27. Kxf3 {[%clk
0:01:37.1]} 27... Kf7 {[%clk 0:01:36.8]} 28. Re4 {[%clk 0:01:33.5]} 28... Kf6
{[%clk 0:01:34.7]} 29. Ke3 {[%clk 0:01:31.1]} 29... h6 {[%clk 0:01:34.2]} 30. h4
{[%clk 0:01:26.1]} 30... h5 {[%clk 0:01:32.1]} 31. Re5 {[%clk 0:01:24.2]} 31...
g6 {[%clk 0:01:31.8]} 32. Re4 {[%clk 0:01:16.7]} 32... d5 {[%clk 0:01:29.3]} 33.
Rb4 {[%clk 0:01:15.2]} 33... Kf5 {[%clk 0:01:27.4]} 34. Kf3 {[%clk 0:01:12.5]}
34... Rc5 {[%clk 0:01:22.4]} 35. a4 {[%clk 0:01:09.7]} 35... bxa4 {[%clk
0:01:18.3]} 36. Rxa4 {[%clk 0:01:09.4]} 36... a5 {[%clk 0:01:19]} 37. Ke3 {[%clk
0:00:24.4]} 37... Rb5 {[%clk 0:00:57.8]} 38. b4 {[%clk 0:00:24]} 38... axb4
{[%clk 0:00:56.5]} 39. Rxb4 {[%clk 0:00:24.4]} 39... Rc5 {[%clk 0:00:54.8]} 40.
Rb3 {[%clk 0:00:18.1]} 40... Kg4 {[%clk 0:00:53.2]} 41. Kf2 {[%clk 0:00:18.4]}
41... Rc6 {[%clk 0:00:52.3]} 42. Kg2 {[%clk 0:00:17.9]} 42... Ra6 {[%clk
0:00:51.2]} 43. Rb2 {[%clk 0:00:18.2]} 43... Ra3 {[%clk 0:00:47.5]} 44. Rc2
{[%clk 0:00:18.1]} 44... Rb3 {[%clk 0:00:46.3]} 45. Kf2 {[%clk 0:00:17.8]} 45...
Rb1 {[%clk 0:00:45.3]} 46. Re2 {[%clk 0:00:17.7]} 46... Kf5 {[%clk 0:00:45.4]}
47. Re5+ {[%clk 0:00:17.8]} 47... Kf6 {[%clk 0:00:45.8]} 48. Ke3 {[%clk
0:00:18]} 48... Rg1 {[%clk 0:00:42.8]} 49. Rg5 {[%clk 0:00:17.8]} 49... Re1+
{[%clk 0:00:40.7]} 50. Kd2 {[%clk 0:00:17.6]} 50... Ra1 {[%clk 0:00:32.2]} 51.
Kd3 {[%clk 0:00:17.9]} 51... Ra4 {[%clk 0:00:28.3]} 52. Kd2 {[%clk 0:00:17.7]}
52... Ra2+ {[%clk 0:00:23.6]} 53. Kd3 {[%clk 0:00:18]} 53... Rg2 {[%clk
0:00:24.2]} 54. Ke3 {[%clk 0:00:17.6]} 54... Rg1 {[%clk 0:00:22.9]} 55. Kd3
{[%clk 0:00:17.5]} 55... Rg2 {[%clk 0:00:18.1]} 56. c4 {[%clk 0:00:17.4]} 56...
dxc4+ {[%clk 0:00:17.1]} 57. Kxc4 {[%clk 0:00:17.8]} 57... Rg1 {[%clk
0:00:15.5]} 58. Kd3 {[%clk 0:00:17.9]} 58... Rg2 {[%clk 0:00:15.6]} 59. Ke4
{[%clk 0:00:18.1]} 59... Rg1 {[%clk 0:00:15.4]} 60. Kf3 {[%clk 0:00:18.2]} 60...
Rf1+ {[%clk 0:00:15]} 61. Kg2 {[%clk 0:00:18.4]} 61... Rd1 {[%clk 0:00:15.2]}
62. Re5 {[%clk 0:00:18.3]} 62... Rd5 {[%clk 0:00:14.9]} 63. Re3 {[%clk
0:00:16.6]} 63... Kf5 {[%clk 0:00:15.2]} 64. Kf3 {[%clk 0:00:16.3]} 64... Rc5
{[%clk 0:00:15.1]} 65. Ra3 {[%clk 0:00:16.3]} 65... e5 {[%clk 0:00:14.8]} 66.
fxe5 {[%clk 0:00:16.1]} 66... Rxe5 {[%clk 0:00:15.4]} 67. Ra4 {[%clk 0:00:16.2]}
67... Rc5 {[%clk 0:00:15.1]} 68. Rf4+ {[%clk 0:00:16.7]} 68... Ke5 {[%clk
0:00:15.5]} 69. Kg2 {[%clk 0:00:17.1]} 69... Ke6 {[%clk 0:00:14.8]} 70. Kh3
{[%clk 0:00:17.3]} 70... Rf5 {[%clk 0:00:14.8]} 71. Re4+ {[%clk 0:00:17.5]}
71... Re5 {[%clk 0:00:14.9]} 72. Rf4 {[%clk 0:00:17.7]} 72... Rf5 {[%clk
0:00:14.7]} 73. Re4+ {[%clk 0:00:18]} 73... Re5 {[%clk 0:00:15.1]} 74. Rf4
{[%clk 0:00:18.4]} 74... Rf5 {[%clk 0:00:15.2]} 1/2-1/2

[Event "Early-Titled-Tuesday-Blitz-March-05-2024"]
[Site "Chess.com"]
[Date "2024.03.05"]
[Round "3"]
[White "RamyresCoelho"]
[Black "VinzentSpitzl"]
[Result "1/2-1/2"]
[WhiteElo "2288"]
[BlackElo "2534"]
[TimeControl "180+1"]
[EndTime "8:32:32 PST"]
[Termination "Game drawn by repetition"]

1. e4 {[%clk 0:02:59.8]} 1... c5 {[%clk 0:02:57.4]} 2. Nf3 {[%clk 0:02:59.2]}
2... d6 {[%clk 0:02:56.7]} 3. d4 {[%clk 0:02:59.4]} 3... cxd4 {[%clk 0:02:57.3]}
4. Nxd4 {[%clk 0:03:00.3]} 4... Nf6 {[%clk 0:02:57.8]} 5. Nc3 {[%clk 0:03:00.8]}
5... a6 {[%clk 0:02:58.1]} 6. f3 {[%clk 0:03:00.7]} 6... e5 {[%clk 0:02:57.6]}
7. Nb3 {[%clk 0:03:00.7]} 7... Be7 {[%clk 0:02:58]} 8. Be3 {[%clk 0:03:01.2]}
8... Be6 {[%clk 0:02:57.7]} 9. Qd2 {[%clk 0:03:01.5]} 9... h5 {[%clk 0:02:56.5]}
10. O-O-O {[%clk 0:03:01.3]} 10... Nbd7 {[%clk 0:02:53.3]} 11. Kb1 {[%clk
0:03:01.1]} 11... Rc8 {[%clk 0:02:52.1]} 12. h3 {[%clk 0:03:00.9]} 12... h4
{[%clk 0:02:50.7]} 13. f4 {[%clk 0:03:00.5]} 13... exf4 {[%clk 0:02:39.4]} 14.
Bxf4 {[%clk 0:03:01.4]} 14... Ne5 {[%clk 0:02:39.5]} 15. Nd4 {[%clk 0:02:21.4]}
15... b5 {[%clk 0:02:06.2]} 16. Nxe6 {[%clk 0:02:18.7]} 16... fxe6 {[%clk
0:02:07.1]} 17. Bxe5 {[%clk 0:02:18.7]} 17... dxe5 {[%clk 0:02:07]} 18. Qg5
{[%clk 0:02:17.5]} 18... Qc7 {[%clk 0:02:06.9]} 19. Qg6+ {[%clk 0:02:04.9]}
19... Kf8 {[%clk 0:02:03]} 20. Bd3 {[%clk 0:02:04.1]} 20... Rh6 {[%clk
0:01:53.8]} 21. Qg5 {[%clk 0:02:01.4]} 21... Nxe4 {[%clk 0:01:51.4]} 22. Rhf1+
{[%clk 0:01:50.7]} 22... Kg8 {[%clk 0:01:50.7]} 23. Qe3 {[%clk 0:01:22.9]} 23...
Nxc3+ {[%clk 0:01:41.1]} 24. bxc3 {[%clk 0:01:23.8]} 24... Qxc3 {[%clk
0:01:39.1]} 25. Rf3 {[%clk 0:01:02.4]} 25... Qb4+ {[%clk 0:01:14.9]} 26. Kc1
{[%clk 0:01:00.3]} 26... Bc5 {[%clk 0:01:05.5]} 27. Qe4 {[%clk 0:00:53]} 27...
Bd4 {[%clk 0:00:58.3]} 28. Rdf1 {[%clk 0:00:40.1]} 28... Bb2+ {[%clk 0:00:30.5]}
29. Kd1 {[%clk 0:00:39.2]} 29... Qxe4 {[%clk 0:00:30.6]} 30. Bxe4 {[%clk
0:00:38.6]} 30... Rd8+ {[%clk 0:00:29.3]} 31. Ke2 {[%clk 0:00:37.3]} 31... b4
{[%clk 0:00:23.4]} 32. Rf7 {[%clk 0:00:32]} 32... Bc3 {[%clk 0:00:23]} 33. Rb7
{[%clk 0:00:28.1]} 33... Rd2+ {[%clk 0:00:19.6]} 34. Ke3 {[%clk 0:00:28.1]}
34... Rf6 {[%clk 0:00:19.7]} 35. Rb8+ {[%clk 0:00:25.3]} 35... Kf7 {[%clk
0:00:19.1]} 36. Rb7+ {[%clk 0:00:23.6]} 36... Kf8 {[%clk 0:00:19.2]} 37. Rb8+
{[%clk 0:00:20.3]} 37... Ke7 {[%clk 0:00:19.3]} 38. Rb7+ {[%clk 0:00:20.6]}
38... Rd7 {[%clk 0:00:19.3]} 39. Rxd7+ {[%clk 0:00:20.4]} 39... Kxd7 {[%clk
0:00:19.6]} 40. Rd1+ {[%clk 0:00:14.7]} 40... Bd4+ {[%clk 0:00:18.8]} 41. Kd3
{[%clk 0:00:12.6]} 41... a5 {[%clk 0:00:14]} 42. Kc4 {[%clk 0:00:12.7]} 42...
Rf4 {[%clk 0:00:14.1]} 43. Bf3 {[%clk 0:00:07.1]} 43... Kc7 {[%clk 0:00:13.7]}
44. Kb5 {[%clk 0:00:06.8]} 44... Bc3 {[%clk 0:00:05.9]} 45. Bc6 {[%clk
0:00:05.1]} 45... e4 {[%clk 0:00:05.5]} 46. Rd7+ {[%clk 0:00:05.3]} 46... Kc8
{[%clk 0:00:05.9]} 47. Kb6 {[%clk 0:00:03.9]} 47... e3 {[%clk 0:00:05.6]} 48.
Re7 {[%clk 0:00:02.6]} 48... Rf8 {[%clk 0:00:05.3]} 49. Rc7+ {[%clk 0:00:02.1]}
49... Kb8 {[%clk 0:00:05.4]} 50. Rb7+ {[%clk 0:00:02.2]} 50... Kc8 {[%clk
0:00:06.2]} 51. Rc7+ {[%clk 0:00:02.4]} 51... Kd8 {[%clk 0:00:07.1]} 52. Rd7+
{[%clk 0:00:02.8]} 52... Ke8 {[%clk 0:00:07.4]} 53. Rxg7+ {[%clk 0:00:02.3]}
53... Kd8 {[%clk 0:00:07.9]} 54. Rd7+ {[%clk 0:00:02.7]} 54... Kc8 {[%clk
0:00:08.4]} 55. Rc7+ {[%clk 0:00:02.9]} 55... Kd8 {[%clk 0:00:08.9]} 56. Rd7+
{[%clk 0:00:03.4]} 56... Kc8 {[%clk 0:00:09.1]} 57. Rc7+ {[%clk 0:00:03.7]}
57... Kd8 {[%clk 0:00:10]} 58. Rd7+ {[%clk 0:00:04]} 1/2-1/2

[Event "Early-Titled-Tuesday-Blitz-March-05-2024"]
[Site "Chess.com"]
[Date "2024.03.05"]
[Round "3"]
[White "Viacheslav92"]
[Black "Veganator13"]
[Result "1-0"]
[WhiteElo "2548"]
[BlackElo "2308"]
[TimeControl "180+1"]
[EndTime "8:32:34 PST"]
[Termination "Viacheslav92 won on time"]

1. d4 {[%clk 0:02:58.8]} 1... g6 {[%clk 0:02:58.8]} 2. c4 {[%clk 0:02:56.8]}
2... Bg7 {[%clk 0:02:59.3]} 3. Nc3 {[%clk 0:02:57.5]} 3... c5 {[%clk 0:02:59.7]}
4. d5 {[%clk 0:02:56.9]} 4... d6 {[%clk 0:03:00]} 5. e4 {[%clk 0:02:56.9]} 5...
Nf6 {[%clk 0:03:00.7]} 6. f4 {[%clk 0:02:56.8]} 6... O-O {[%clk 0:03:00.6]} 7.
Nf3 {[%clk 0:02:57.3]} 7... e6 {[%clk 0:02:56.4]} 8. Bd3 {[%clk 0:02:54.3]} 8...
exd5 {[%clk 0:02:55.3]} 9. cxd5 {[%clk 0:02:55.2]} 9... Bg4 {[%clk 0:02:54.8]}
10. O-O {[%clk 0:02:53.3]} 10... Re8 {[%clk 0:02:53.3]} 11. h3 {[%clk
0:02:52.7]} 11... Bxf3 {[%clk 0:02:52.7]} 12. Qxf3 {[%clk 0:02:53.6]} 12... Nbd7
{[%clk 0:02:52.2]} 13. a4 {[%clk 0:02:53.2]} 13... a6 {[%clk 0:02:42.8]} 14. Kh2
{[%clk 0:02:49.5]} 14... Qa5 {[%clk 0:02:32.8]} 15. Bd2 {[%clk 0:02:39.3]} 15...
Qb4 {[%clk 0:02:30]} 16. Ra3 {[%clk 0:02:08.4]} 16... c4 {[%clk 0:02:27.6]} 17.
Bc2 {[%clk 0:01:58.4]} 17... Qxb2 {[%clk 0:01:58.3]} 18. Ra2 {[%clk 0:01:58]}
18... Qb6 {[%clk 0:01:57.9]} 19. Rb1 {[%clk 0:01:55.8]} 19... Qc7 {[%clk
0:01:57.9]} 20. Be3 {[%clk 0:01:40.8]} 20... Nc5 {[%clk 0:01:52.9]} 21. Bxc5
{[%clk 0:01:39.5]} 21... Qxc5 {[%clk 0:01:51.6]} 22. Rxb7 {[%clk 0:01:39.4]}
22... Rab8 {[%clk 0:01:49.3]} 23. Rab2 {[%clk 0:00:59.8]} 23... Rxb7 {[%clk
0:01:46.1]} 24. Rxb7 {[%clk 0:01:00.7]} 24... Nh5 {[%clk 0:01:38]} 25. Ne2
{[%clk 0:00:54.2]} 25... Qc8 {[%clk 0:01:11.6]} 26. Rb6 {[%clk 0:00:52.3]} 26...
Rd8 {[%clk 0:00:59.1]} 27. Rc6 {[%clk 0:00:50.7]} 27... Qb7 {[%clk 0:00:57.8]}
28. Rxc4 {[%clk 0:00:49.9]} 28... Rc8 {[%clk 0:00:52.9]} 29. Qb3 {[%clk
0:00:47.1]} 29... Qd7 {[%clk 0:00:43.8]} 30. Rxc8+ {[%clk 0:00:44.1]} 30... Qxc8
{[%clk 0:00:43.6]} 31. Bd3 {[%clk 0:00:44.8]} 31... h6 {[%clk 0:00:36.2]} 32.
Qc4 {[%clk 0:00:44.3]} 32... Qb8 {[%clk 0:00:29.7]} 33. Qxa6 {[%clk 0:00:42.5]}
33... g5 {[%clk 0:00:23.4]} 34. Qb5 {[%clk 0:00:36.2]} 34... Qd8 {[%clk
0:00:15.8]} 35. e5 {[%clk 0:00:25]} 35... dxe5 {[%clk 0:00:11.1]} 36. f5 {[%clk
0:00:25.3]} 36... e4 {[%clk 0:00:10.8]} 37. Bxe4 {[%clk 0:00:23.3]} 37... Be5+
{[%clk 0:00:11.3]} 38. g3 {[%clk 0:00:23.8]} 38... Nf6 {[%clk 0:00:10.9]} 39.
Qd3 {[%clk 0:00:22.7]} 39... Qb6 {[%clk 0:00:09.2]} 40. Bg2 {[%clk 0:00:21.3]}
40... h5 {[%clk 0:00:09.2]} 41. a5 {[%clk 0:00:19.7]} 41... Qxa5 {[%clk
0:00:08.9]} 42. d6 {[%clk 0:00:20]} 42... Qd8 {[%clk 0:00:09.1]} 43. Qe3 {[%clk
0:00:17.4]} 43... Qxd6 {[%clk 0:00:09.4]} 44. Qxg5+ {[%clk 0:00:17.3]} 44... Kf8
{[%clk 0:00:10.1]} 45. Nf4 {[%clk 0:00:15.3]} 45... Bxf4 {[%clk 0:00:08.5]} 46.
gxf4 {[%clk 0:00:15.8]} 46... Qd4 {[%clk 0:00:08.4]} 47. Qg3 {[%clk 0:00:14]}
47... Ke7 {[%clk 0:00:06.6]} 48. Qg5 {[%clk 0:00:14.4]} 48... Kf8 {[%clk
0:00:06.4]} 49. Qg3 {[%clk 0:00:14.5]} 49... Ke7 {[%clk 0:00:07.2]} 50. Qh4
{[%clk 0:00:13.6]} 50... Kf8 {[%clk 0:00:07.6]} 51. Qg5 {[%clk 0:00:13.7]} 51...
Ke7 {[%clk 0:00:08]} 52. Kh1 {[%clk 0:00:13.4]} 52... Qa1+ {[%clk 0:00:07.2]}
53. Kh2 {[%clk 0:00:13.4]} 53... Qd4 {[%clk 0:00:07.9]} 54. Qh4 {[%clk
0:00:12.9]} 54... Kf8 {[%clk 0:00:08.2]} 55. Bf3 {[%clk 0:00:12.3]} 55... Qb2+
{[%clk 0:00:07.6]} 56. Kg1 {[%clk 0:00:11.9]} 56... Qa1+ {[%clk 0:00:07.6]} 57.
Kg2 {[%clk 0:00:12.3]} 57... Qb2+ {[%clk 0:00:07.7]} 58. Qf2 {[%clk 0:00:13]}
58... Qb6 {[%clk 0:00:05.2]} 59. Qxb6 {[%clk 0:00:12.4]} 1-0

[Event "Early-Titled-Tuesday-Blitz-March-05-2024"]
[Site "Chess.com"]
[Date "2024.03.05"]
[Round "3"]
[White "Orest_Vovk"]
[Black "Pasmendjambvirgulptipon98"]
[Result "1-0"]
[WhiteElo "2563"]
[BlackElo "2338"]
[TimeControl "180+1"]
[EndTime "8:32:39 PST"]
[Termination "Orest_Vovk won by resignation"]

1. e4 {[%clk 0:02:53.6]} 1... d6 {[%clk 0:02:58.6]} 2. Nf3 {[%clk 0:02:51.6]}
2... Nf6 {[%clk 0:02:58.4]} 3. Nc3 {[%clk 0:02:50.9]} 3... Nbd7 {[%clk
0:02:58.8]} 4. d4 {[%clk 0:02:50.7]} 4... e5 {[%clk 0:02:59]} 5. dxe5 {[%clk
0:02:50.5]} 5... dxe5 {[%clk 0:02:59.9]} 6. Bc4 {[%clk 0:02:50.7]} 6... Be7
{[%clk 0:02:53.4]} 7. O-O {[%clk 0:02:50]} 7... O-O {[%clk 0:02:53]} 8. Be3
{[%clk 0:02:49.4]} 8... c6 {[%clk 0:02:52.4]} 9. h3 {[%clk 0:02:49.5]} 9... Qc7
{[%clk 0:02:52.6]} 10. Qd2 {[%clk 0:02:49.8]} 10... Bc5 {[%clk 0:02:49.6]} 11.
Rad1 {[%clk 0:02:46.9]} 11... Bxe3 {[%clk 0:02:48.5]} 12. Qxe3 {[%clk
0:02:46.8]} 12... Nb6 {[%clk 0:02:49.1]} 13. Bb3 {[%clk 0:02:45.8]} 13... a5
{[%clk 0:02:48.9]} 14. a3 {[%clk 0:02:37.2]} 14... a4 {[%clk 0:02:37.9]} 15. Ba2
{[%clk 0:02:36.9]} 15... Re8 {[%clk 0:02:27.9]} 16. Qc5 {[%clk 0:02:36]} 16...
Be6 {[%clk 0:02:15]} 17. Bxe6 {[%clk 0:02:29.6]} 17... Rxe6 {[%clk 0:02:15.9]}
18. Nb5 {[%clk 0:02:27.4]} 18... Qe7 {[%clk 0:01:47.4]} 19. Qxb6 {[%clk
0:02:16]} 19... cxb5 {[%clk 0:01:46.1]} 20. Qxb5 {[%clk 0:02:14.1]} 20... Nxe4
{[%clk 0:01:44.2]} 21. Rd7 {[%clk 0:02:07.7]} 21... Qe8 {[%clk 0:01:16.8]} 22.
Qxb7 {[%clk 0:01:59.1]} 22... Nc5 {[%clk 0:01:13.1]} 23. Qxa8 {[%clk 0:01:35]}
23... Qxa8 {[%clk 0:01:10.1]} 24. Rc7 {[%clk 0:01:31]} 24... Rc6 {[%clk
0:01:02.8]} 25. Re7 {[%clk 0:01:17.7]} 25... e4 {[%clk 0:00:35.7]} 26. Nd4
{[%clk 0:01:09]} 26... Rg6 {[%clk 0:00:33.1]} 27. Rd1 {[%clk 0:00:51.9]} 27...
h6 {[%clk 0:00:29.6]} 28. Nf5 {[%clk 0:00:46.9]} 28... Ne6 {[%clk 0:00:19.1]}
29. Nd6 {[%clk 0:00:21.7]} 29... Nf8 {[%clk 0:00:07]} 30. Nxe4 {[%clk
0:00:11.9]} 30... Re6 {[%clk 0:00:07.3]} 31. Rxe6 {[%clk 0:00:08.6]} 31... Nxe6
{[%clk 0:00:08.2]} 32. Nc3 {[%clk 0:00:08.6]} 32... Nf4 {[%clk 0:00:08.5]} 33.
f3 {[%clk 0:00:06.3]} 33... Kh7 {[%clk 0:00:08.8]} 34. Rd4 {[%clk 0:00:05.9]}
34... Qa7 {[%clk 0:00:05.9]} 35. Nb5 {[%clk 0:00:04.5]} 35... Ne2+ {[%clk
0:00:05.3]} 36. Kf2 {[%clk 0:00:04.8]} 36... Qxd4+ {[%clk 0:00:02.9]} 37. Nxd4
{[%clk 0:00:04.3]} 37... Nxd4 {[%clk 0:00:03.8]} 38. c4 {[%clk 0:00:02.8]} 38...
Nb3 {[%clk 0:00:02.3]} 39. Ke3 {[%clk 0:00:03.1]} 39... Kg6 {[%clk 0:00:02.8]}
40. Ke4 {[%clk 0:00:03.4]} 40... Kf6 {[%clk 0:00:02.3]} 41. Kd5 {[%clk
0:00:03.9]} 41... Ke7 {[%clk 0:00:02.7]} 42. Kc6 {[%clk 0:00:04.3]} 42... Ke6
{[%clk 0:00:02.1]} 43. Kb5 {[%clk 0:00:03.5]} 43... Kd7 {[%clk 0:00:02.5]} 44.
Kxa4 {[%clk 0:00:03.7]} 44... Nd4 {[%clk 0:00:02.7]} 45. Kb4 {[%clk 0:00:02.9]}
45... Ne2 {[%clk 0:00:02.4]} 46. a4 {[%clk 0:00:03.2]} 46... Nf4 {[%clk
0:00:03.1]} 47. g4 {[%clk 0:00:02.7]} 47... Nxh3 {[%clk 0:00:03.3]} 48. a5
{[%clk 0:00:03.6]} 48... Ng5 {[%clk 0:00:03.2]} 49. Kb5 {[%clk 0:00:04.1]} 49...
Kc7 {[%clk 0:00:03]} 50. f4 {[%clk 0:00:03.7]} 50... Nf3 {[%clk 0:00:02.4]} 51.
b4 {[%clk 0:00:03.4]} 51... g6 {[%clk 0:00:02.2]} 52. a6 {[%clk 0:00:03.6]}
52... h5 {[%clk 0:00:01.9]} 53. gxh5 {[%clk 0:00:04.5]} 53... gxh5 {[%clk
0:00:02.8]} 54. Kc5 {[%clk 0:00:04.6]} 54... Nd2 {[%clk 0:00:02.5]} 55. b5
{[%clk 0:00:04.5]} 55... Ne4+ {[%clk 0:00:03.1]} 56. Kd4 {[%clk 0:00:04.1]}
56... f5 {[%clk 0:00:03.3]} 57. c5 {[%clk 0:00:04]} 57... h4 {[%clk 0:00:03.7]}
58. b6+ {[%clk 0:00:04.5]} 58... Kc6 {[%clk 0:00:02.9]} 59. a7 {[%clk
0:00:04.6]} 59... Kb7 {[%clk 0:00:01.3]} 60. c6+ {[%clk 0:00:05.1]} 60... Kxb6
{[%clk 0:00:01.9]} 61. a8=Q {[%clk 0:00:04.8]} 61... h3 {[%clk 0:00:02.8]} 62.
Qb7+ {[%clk 0:00:05]} 62... Ka5 {[%clk 0:00:03.1]} 63. Qh7 {[%clk 0:00:05.6]}
63... h2 {[%clk 0:00:02.7]} 64. Qxh2 {[%clk 0:00:05.6]} 1-0